[Event "IM Marmaris Karia IX 2019"]
[Site "Marmaris"]
[Date "2019.08.24"]
[Round "4.5"]
[White "Papenin, Nikolai"]
[Black "Kirilmaz, Emre"]
[Result "1-0"]
[ECO "D37"]
[WhiteElo "2319"]
[BlackElo "2044"]
[Annotator "NA"]
[PlyCount "63"]
[EventDate "2019.08.24"]
[EventType "schev"]
[EventCountry "TUR"]
[SourceTitle "playchess.com"]
[Source "ChessBase"]
[SourceQuality "1"]
[TimeControl "5400+30"]

1. d4 {[%emt 0:00:30]} d5 {[%emt 0:03:30]} 2. c4 {[%emt 0:00:00]} e6 {[%emt 0:00:00]} 3. Nc3 {[%emt 0:00:00]} Nf6 {[%emt 0:00:00]} 4. Nf3 {[%emt 0:00:00]} Be7 {[%emt 0:00:30]} 5. Bf4 {[%emt 0:00:00]} O-O {[%emt 0:00:30]} 6. e3 {[%emt 0:00:00]} Nbd7 {[%emt 0:01:30]} 7. c5 {[%emt 0:01:00]} Nh5 {[%emt 0:01:30]} 8. Bd3 {[%emt 0:00:30]} Nxf4 {[%emt 0:00:30]} 9. exf4 {[%emt 0:00:30]} c6 {[%emt 0:03:30]} 10. O-O {[%emt 0:01:30]} b6 {[%emt 0:00:30]} 11. b4 {[%emt 0:00:30]} a5 {[%emt 0:00:30]} 12. a3 {[%emt 0:00:30]} Ba6 {[%emt 0:00:30]} 13. Bxa6 {[%emt 0:05:30]} Rxa6 {[%emt 0:00:30]} 14. Qe2 {[%emt 0:00:00]} b5 {[%emt 0:02:30]} 15. Rfb1 {[%emt 0:03:00]} Qc7 {[%emt 0:02:30]} 16. f5 {[%emt 0:09:30]} e5 {[%emt 0:05:30]} 17. dxe5 {[%emt 0:00:00]} Re8 {[%emt 0:01:30]} 18. e6 {[%emt 0:10:00]} Bf6 {[%emt 0:00:30]} 19. Nxd5 {[%emt 0:02:30]} cxd5 {[%emt 0:00:30]} 20. Qxb5 {[%emt 0:00:30]} Raa8 {[%emt 0:07:30]} 21. Qxd7 {[%emt 0:03:30]} Qxd7 {[%emt 0:02:30]} 22. exd7 {[%emt 0:00:30]} Reb8 {[%emt 0:10:30]} 23. c6 {[%emt 0:02:30]} Bd8 {[%emt 0:03:30]} 24. b5 {[%emt 0:00:30]} a4 {[%emt 0:00:00]} 25. Ra2 {[%emt 0:00:30]} Kf8 {[%emt 0:01:00]} 26. Rd2 {[%emt 0:00:30]} Ba5 {[%emt 0:01:30]} 27. Rxd5 {[%emt 0:00:30]} Ke7 {[%emt 0:00:00]} 28. g4 {[%emt 0:00:30]} Ra6 {[%emt 0:01:00]} 29. d8=Q+ {[%emt 0:00:30]} Bxd8 {[%emt 0:00:30]} 30. Re1+ {[%emt 0:00:30]} Kf6 {[%emt 0:00:30]} 31. bxa6 {[%emt 0:00:00]} Be7 {[%emt 0:00:00]} 32. g5# {[%emt 0:00:00]} 1-0

[Event "IM Marmaris Karia IX 2019"]
[Site "Marmaris"]
[Date "2019.08.24"]
[Round "5.1"]
[White "Tanriverdi, Enes"]
[Black "Datuashvili, Nona"]
[Result "0-1"]
[ECO "E11"]
[WhiteElo "2355"]
[BlackElo "2083"]
[Annotator "ChessBase"]
[PlyCount "88"]
[EventDate "2019.08.24"]
[EventType "schev"]
[EventCountry "TUR"]
[SourceTitle "playchess.com"]
[Source "ChessBase"]
[SourceQuality "1"]
[TimeControl "5400+30"]

1. d4 {[%emt 0:01:30]} Nf6 {[%emt 0:00:30]} 2. c4 {[%emt 0:00:30]} e6 {[%emt 0:00:30]} 3. Nf3 {[%emt 0:00:30]} Bb4+ {[%emt 0:00:30]} 4. Bd2 {[%emt 0:00:00]} Bxd2+ {[%emt 0:00:00]} 5. Qxd2 {[%emt 0:00:00]} b6 {[%emt 0:02:00]} 6. Nc3 {[%emt 0:10:30]} Bb7 {[%emt 0:01:30]} 7. d5 {[%emt 0:01:30]} exd5 {[%emt 0:01:30]} 8. cxd5 {[%emt 0:00:00]} d6 {[%emt 0:01:30]} 9. g3 {[%emt 0:01:00]} Nbd7 {[%emt 0:01:30]} 10. Bg2 {[%emt 0:00:30]} O-O {[%emt 0:02:30]} 11. O-O {[%emt 0:00:30]} Re8 {[%emt 0:02:30]} 12. Nd4 {[%emt 0:00:30]} Ne5 {[%emt 0:00:30]} 13. b3 {[%emt 0:02:30]} a5 {[%emt 0:13:30]} 14. f4 {[%emt 0:00:30]} Neg4 {[%emt 0:04:30]} 15. e4 {[%emt 0:00:30]} Nd7 {[%emt 0:01:30]} 16. h3 {[%emt 0:07:30]} Ngf6 {[%emt 0:00:30]} 17. g4 {[%emt 0:00:30]} h6 {[%emt 0:04:30]} 18. Rfe1 {[%emt 0:11:30]} Nf8 {[%emt 0:06:30]} 19. Re3 {[%emt 0:18:30]} Ng6 {[%emt 0:11:30]} 20. Rf1 {[%emt 0:00:30]} Qd7 {[%emt 0:07:30]} 21. Nf5 {[%emt 0:01:30]} Ne7 {[%emt 0:07:30]} 22. e5 {[%emt 0:05:30]} Nxf5 {[%emt 0:03:30]} 23. gxf5 {[%emt 0:00:30]} Qe7 {[%emt 0:03:30]} 24. Rfe1 {[%emt 0:01:30]} dxe5 {[%emt 0:00:30]} 25. fxe5 {[%emt 0:00:00]} Nh5 {[%emt 0:02:30]} 26. d6 {[%emt 0:00:00]} Qg5 {[%emt 0:00:30]} 27. h4 {[%emt 0:13:30]} Qg4 {[%emt 0:07:35]} 28. Qe2 {[%emt 0:02:30]} Qxe2 {[%emt 0:01:30]} 29. R1xe2 {[%emt 0:03:16]} Bxg2 {[%emt 0:00:20]} 30. d7 {[%emt 0:02:01]} Re7 {[%emt 0:00:30]} 31. Rxg2 {[%emt 0:00:49]} Rxd7 {[%emt 0:00:09]} 32. e6 {[%emt 0:00:45]} Rd4 {[%emt 0:01:21]} 33. Nb5 {[%emt 0:01:52]} Rd1+ {[%emt 0:01:33]} 34. Kh2 {[%emt 0:00:01]} Nf6 {[%emt 0:03:32]} 35. Reg3 {[%emt 0:06:25]} Nh5 {[%emt 0:03:16]} 36. Rc3 {[%emt 0:04:19]} fxe6 {[%emt 0:00:55]} 37. fxe6 {[%emt 0:00:31]} Nf4 {[%emt 0:00:29]} 38. Nxc7 {[%emt 0:01:22]} Rc8 {[%emt 0:01:04]} 39. Rgc2 {[%emt 0:00:04]} Re1 {[%emt 0:00:41]} 40. Rc6 {[%emt 0:00:01]} Rd8 {[%emt 0:00:35]} 41. Rf2 {[%emt 0:00:29]} g5 {[%emt 0:00:39]} 42. Rxb6 {[%emt 0:00:22]} Rd3 {[%emt 0:00:17]} 43. Rb8+ {[%emt 0:00:54]} Kh7 {[%emt 0:00:02]} 44. Rxf4 {[%emt 0:00:15]} gxf4 {[%emt 0:00:21]} 0-1

[Event "IM Marmaris Karia IX 2019"]
[Site "Marmaris"]
[Date "2019.08.24"]
[Round "6.1"]
[White "Benidze, Davit"]
[Black "Tanriverdi, Enes"]
[Result "0-1"]
[ECO "E81"]
[WhiteElo "2440"]
[BlackElo "2355"]
[Annotator "ChessBase"]
[PlyCount "68"]
[EventDate "2019.08.24"]
[EventType "schev"]
[EventCountry "TUR"]
[SourceTitle "playchess.com"]
[Source "ChessBase"]
[SourceQuality "1"]
[TimeControl "5400+30"]

1. d4 {[%emt 0:00:30]} Nf6 {[%emt 0:00:30]} 2. c4 {[%emt 0:00:00]} g6 {[%emt 0:01:30]} 3. Nc3 {[%emt 0:00:00]} Bg7 {[%emt 0:00:00]} 4. e4 {[%emt 0:00:00]} d6 {[%emt 0:00:00]} 5. f3 {[%emt 0:00:00]} O-O {[%emt 0:00:30]} 6. Be3 {[%emt 0:00:00]} c5 {[%emt 0:00:00]} 7. Nge2 {[%emt 0:00:00]} Nc6 {[%emt 0:01:00]} 8. d5 {[%emt 0:00:30]} Na5 {[%emt 0:00:00]} 9. Ng3 {[%emt 0:01:30]} e6 {[%emt 0:00:00]} 10. Be2 {[%emt 0:00:30]} a6 {[%emt 0:00:30]} 11. O-O {[%emt 0:00:30]} exd5 {[%emt 0:00:00]} 12. cxd5 {[%emt 0:00:30]} b5 {[%emt 0:00:00]} 13. e5 {[%emt 0:00:30]} Nd7 {[%emt 0:03:30]} 14. f4 {[%emt 0:00:30]} f5 {[%emt 0:01:30]} 15. exf6 {[%emt 0:04:30]} Nxf6 {[%emt 0:00:30]} 16. f5 {[%emt 0:00:00]} b4 {[%emt 0:00:30]} 17. Na4 {[%emt 0:00:00]} Bd7 {[%emt 0:01:30]} 18. Bf4 {[%emt 0:01:30]} Bxf5 {[%emt 0:07:30]} 19. Nxf5 {[%emt 0:01:30]} gxf5 {[%emt 0:00:30]} 20. Bd3 {[%emt 0:00:00]} Nxd5 {[%emt 0:01:30]} 21. Bc4 {[%emt 0:01:00]} Bd4+ {[%emt 0:00:30]} 22. Qxd4 {[%emt 0:00:30]} cxd4 {[%emt 0:00:00]} 23. Bxd5+ {[%emt 0:00:00]} Kg7 {[%emt 0:01:00]} 24. Bxa8 {[%emt 0:00:00]} Qxa8 {[%emt 0:00:30]} 25. b3 {[%emt 0:00:30]} Re8 {[%emt 0:05:30]} 26. Rf2 {[%emt 0:00:30]} d3 {[%emt 0:04:30]} 27. Nb2 {[%emt 0:00:30]} Qe4 {[%emt 0:01:30]} 28. Rd1 {[%emt 0:00:30]} Nc6 {[%emt 0:00:30]} 29. Rxd3 {[%emt 0:00:30]} Nd4 {[%emt 0:00:30]} 30. Re3 {[%emt 0:00:30]} Qc6 {[%emt 0:01:30]} 31. Nc4 {[%emt 0:00:00]} Rxe3 {[%emt 0:02:30]} 32. Bxe3 {[%emt 0:00:00]} Qe4 {[%emt 0:00:30]} 33. h3 {[%emt 0:00:30]} f4 {[%emt 0:01:30]} 34. Bd2 {[%emt 0:00:30]} f3 {[%emt 0:01:30]} 0-1

[Event "IM Marmaris Karia IX 2019"]
[Site "Marmaris"]
[Date "2019.08.24"]
[Round "6.2"]
[White "Annageldyev, Orazly"]
[Black "Karaoglan, Doruk"]
[Result "1-0"]
[ECO "A48"]
[WhiteElo "2342"]
[BlackElo "2246"]
[Annotator "NA"]
[PlyCount "79"]
[EventDate "2019.08.24"]
[EventType "schev"]
[EventCountry "TUR"]
[SourceTitle "playchess.com"]
[Source "ChessBase"]
[SourceQuality "1"]
[TimeControl "5400+30"]

1. d4 {[%emt 0:00:30]} Nf6 {[%emt 0:00:30]} 2. Nf3 {[%emt 0:00:00]} g6 {[%emt 0:00:00]} 3. Bg5 {[%emt 0:02:00]} Bg7 {[%emt 0:01:00]} 4. Nbd2 {[%emt 0:00:00]} h6 {[%emt 0:01:30]} 5. Bh4 {[%emt 0:00:00]} d6 {[%emt 0:01:30]} 6. e4 {[%emt 0:04:30]} g5 {[%emt 0:01:30]} 7. Bg3 {[%emt 0:00:30]} Nh5 {[%emt 0:00:00]} 8. c3 {[%emt 0:00:30]} Nd7 {[%emt 0:01:00]} 9. d5 {[%emt 0:03:30]} Nxg3 {[%emt 0:13:30]} 10. hxg3 {[%emt 0:00:30]} c5 {[%emt 0:06:30]} 11. Nc4 {[%emt 0:07:30]} O-O {[%emt 0:14:30]} 12. Bd3 {[%emt 0:08:30]} Nb6 {[%emt 0:12:30]} 13. Ne3 {[%emt 0:01:30]} e6 {[%emt 0:05:30]} 14. g4 {[%emt 0:13:30]} exd5 {[%emt 0:02:30]} 15. exd5 {[%emt 0:00:00]} Re8 {[%emt 0:01:30]} 16. O-O {[%emt 0:04:00]} Rxe3 {[%emt 0:01:30]} 17. fxe3 {[%emt 0:00:30]} Bxg4 {[%emt 0:00:30]} 18. Bc2 {[%emt 0:07:30]} Bh5 {[%emt 0:01:30]} 19. Qd3 {[%emt 0:13:30]} Bg6 {[%emt 0:01:30]} 20. Qe2 {[%emt 0:01:30]} g4 {[%emt 0:08:30]} 21. Bxg6 {[%emt 0:03:30]} fxg6 {[%emt 0:02:30]} 22. Nh2 {[%emt 0:03:30]} h5 {[%emt 0:00:30]} 23. Nxg4 {[%emt 0:05:54]} hxg4 {[%emt 0:00:30]} 24. Qxg4 {[%emt 0:00:05]} Qe8 {[%emt 0:01:51]} 25. Rf3 {[%emt 0:01:40]} Nd7 {[%emt 0:04:42]} 26. Qh4 {[%emt 0:03:31]} Qd8 {[%emt 0:02:08]} 27. Qg4 {[%emt 0:02:03]} Qe8 {[%emt 0:00:57]} 28. Qh4 {[%emt 0:00:42]} Qe5 {[%emt 0:01:22]} 29. Rh3 {[%emt 0:01:34]} Nf8 {[%emt 0:01:16]} 30. Rf1 {[%emt 0:03:20]} Re8 {[%emt 0:01:09]} 31. c4 {[%emt 0:00:34]} Qe7 {[%emt 0:02:04]} 32. Qf2 {[%emt 0:02:32]} Nd7 {[%emt 0:01:32]} 33. b3 {[%emt 0:01:08]} Ne5 {[%emt 0:01:59]} 34. Qh4 {[%emt 0:01:43]} Qxh4 {[%emt 0:00:34]} 35. Rxh4 {[%emt 0:00:06]} a6 {[%emt 0:00:21]} 36. Rd1 {[%emt 0:02:24]} Rf8 {[%emt 0:01:10]} 37. Rf4 {[%emt 0:00:52]} Rb8 {[%emt 0:00:24]} 38. Kf1 {[%emt 0:01:22]} Bh6 {[%emt 0:01:39]} 39. Rf6 {[%emt 0:00:28]} Ng4 {[%emt 0:01:58]} 40. Rxg6+ {[%emt 0:00:07]} 1-0

[Event "IM Marmaris Karia IX 2019"]
[Site "Marmaris"]
[Date "2019.08.24"]
[Round "6.3"]
[White "Papenin, Nikolai"]
[Black "Kizilkus, Akin"]
[Result "1/2-1/2"]
[ECO "E70"]
[WhiteElo "2319"]
[BlackElo "2135"]
[Annotator "NA"]
[PlyCount "85"]
[EventDate "2019.08.24"]
[EventType "schev"]
[EventCountry "TUR"]
[SourceTitle "playchess.com"]
[Source "ChessBase"]
[SourceQuality "1"]
[TimeControl "5400+30"]

1. d4 {[%emt 0:00:30]} Nf6 {[%emt 0:00:30]} 2. c4 {[%emt 0:00:00]} g6 {[%emt 0:00:00]} 3. Nc3 {[%emt 0:00:00]} Bg7 {[%emt 0:00:00]} 4. e4 {[%emt 0:00:00]} d6 {[%emt 0:00:00]} 5. Bd3 {[%emt 0:00:00]} O-O {[%emt 0:00:00]} 6. Nge2 {[%emt 0:00:00]} Nc6 {[%emt 0:00:30]} 7. O-O {[%emt 0:00:00]} Nh5 {[%emt 0:00:30]} 8. Bc2 {[%emt 0:00:30]} e5 {[%emt 0:00:00]} 9. d5 {[%emt 0:00:00]} Ne7 {[%emt 0:00:00]} 10. a4 {[%emt 0:01:00]} c5 {[%emt 0:00:00]} 11. dxc6 {[%emt 0:04:30]} bxc6 {[%emt 0:01:00]} 12. b3 {[%emt 0:00:30]} Qc7 {[%emt 0:04:30]} 13. Ba3 {[%emt 0:04:30]} Rd8 {[%emt 0:00:30]} 14. Qd2 {[%emt 0:00:30]} Be6 $11 {[%emt 0:12:30]} 15. Rad1 {[%emt 0:01:30]} Nc8 {[%emt 0:00:00]} 16. h3 {[%emt 0:09:30]} Nf4 {[%emt 0:04:00]} 17. Nxf4 {[%emt 0:00:30]} exf4 {[%emt 0:00:00]} 18. Qd3 {[%emt 0:00:30]} Be5 {[%emt 0:03:00]} 19. Qf3 {[%emt 0:04:30]} Ne7 {[%emt 0:01:30]} 20. Ne2 {[%emt 0:02:30]} g5 {[%emt 0:06:30]} 21. Nd4 {[%emt 0:03:30]} Bc8 {[%emt 0:06:30]} 22. Qh5 {[%emt 0:05:30]} f6 {[%emt 0:02:30]} 23. b4 {[%emt 0:10:30]} Ng6 {[%emt 0:04:30]} 24. Rd2 {[%emt 0:05:30]} Bxd4 {[%emt 0:05:30]} 25. Rxd4 {[%emt 0:00:30]} Ne5 {[%emt 0:00:00]} 26. c5 {[%emt 0:05:30]} Be6 {[%emt 0:08:00]} 27. Rfd1 {[%emt 0:09:30]} dxc5 {[%emt 0:01:30]} 28. bxc5 {[%emt 0:00:00]} Rxd4 {[%emt 0:02:30]} 29. Rxd4 {[%emt 0:00:00]} Rd8 {[%emt 0:02:30]} 30. Rd6 {[%emt 0:00:30]} Rxd6 {[%emt 0:04:30]} 31. cxd6 {[%emt 0:02:30]} Qd7 {[%emt 0:00:30]} 32. Bc5 {[%emt 0:12:26]} f3 {[%emt 0:04:30]} 33. Qh6 {[%emt 0:01:21]} Qf7 {[%emt 0:07:30]} 34. Bd4 {[%emt 0:00:16]} Ng6 {[%emt 0:01:30]} 35. g3 {[%emt 0:04:10]} Bc8 {[%emt 0:02:37]} 36. e5 {[%emt 0:10:18]} fxe5 {[%emt 0:00:54]} 37. Bxg6 {[%emt 0:04:34]} Qxg6 {[%emt 0:00:06]} 38. Qxg6+ {[%emt 0:00:05]} hxg6 {[%emt 0:00:05]} 39. Bxa7 {[%emt 0:00:05]} Kf7 {[%emt 0:01:20]} 40. g4 {[%emt 0:00:39]} Ke6 {[%emt 0:00:25]} 41. Bb8 {[%emt 0:00:20]} Ba6 {[%emt 0:00:27]} 42. d7 {[%emt 0:01:20]} Kxd7 {[%emt 0:00:14]} 43. Bxe5 {[%emt 0:00:34]} 1/2-1/2

[Event "IM Marmaris Karia IX 2019"]
[Site "Marmaris"]
[Date "2019.08.24"]
[Round "6.4"]
[White "Guseynov, Alihan"]
[Black "Oney, Feridun"]
[Result "1-0"]
[ECO "D93"]
[WhiteElo "2314"]
[BlackElo "2054"]
[Annotator "NA"]
[PlyCount "47"]
[EventDate "2019.08.24"]
[EventType "schev"]
[EventCountry "TUR"]
[SourceTitle "playchess.com"]
[Source "ChessBase"]
[SourceQuality "1"]
[TimeControl "5400+30"]

1. d4 {[%emt 0:00:30]} Nf6 {[%emt 0:00:30]} 2. c4 {[%emt 0:00:00]} g6 {[%emt 0:01:30]} 3. Nc3 {[%emt 0:00:00]} d5 {[%emt 0:00:30]} 4. Nf3 {[%emt 0:00:30]} Bg7 {[%emt 0:00:30]} 5. Bf4 {[%emt 0:01:30]} O-O {[%emt 0:05:30]} 6. e3 {[%emt 0:00:00]} c5 {[%emt 0:03:30]} 7. dxc5 {[%emt 0:03:00]} Qa5 {[%emt 0:00:30]} 8. Rc1 {[%emt 0:01:30]} dxc4 {[%emt 0:01:30]} 9. Bxc4 {[%emt 0:00:30]} Qxc5 $11 {[%emt 0:03:30]} 10. Bb3 {[%emt 0:13:30]} Nc6 {[%emt 0:03:30]} 11. O-O {[%emt 0:00:30]} Qh5 {[%emt 0:00:30]} 12. h3 {[%emt 0:07:30]} h6 {[%emt 0:11:30]} 13. Bg3 {[%emt 0:10:30]} Bf5 {[%emt 0:08:30]} 14. Ne5 {[%emt 0:12:30]} Nxe5 {[%emt 0:01:30]} 15. Bxe5 {[%emt 0:00:00]} Bg4 {[%emt 0:14:30]} 16. Qd4 {[%emt 0:05:00]} Rad8 {[%emt 0:01:30]} 17. Qf4 {[%emt 0:01:30]} g5 {[%emt 0:06:30]} 18. Qg3 {[%emt 0:13:30]} Bc8 {[%emt 0:06:30]} 19. Bxf6 {[%emt 0:03:30]} Bxf6 {[%emt 0:03:30]} 20. Nd5 {[%emt 0:02:30]} Bxb2 {[%emt 0:00:30]} 21. Nxe7+ {[%emt 0:01:30]} Kh8 {[%emt 0:02:30]} 22. Rc7 {[%emt 0:03:26]} g4 {[%emt 0:02:30]} 23. Nxc8 {[%emt 0:01:51]} Be5 {[%emt 0:02:42]} 24. Rc5 {[%emt 0:00:25]} 1-0

[Event "IM Marmaris Karia IX 2019"]
[Site "Marmaris"]
[Date "2019.08.24"]
[Round "6.5"]
[White "Datuashvili, Nona"]
[Black "Kirilmaz, Emre"]
[Result "0-1"]
[ECO "D02"]
[WhiteElo "2083"]
[BlackElo "2044"]
[Annotator "NA"]
[PlyCount "92"]
[EventDate "2019.08.24"]
[EventType "schev"]
[EventCountry "TUR"]
[SourceTitle "playchess.com"]
[Source "ChessBase"]
[SourceQuality "1"]
[TimeControl "5400+30"]

1. d4 {[%emt 0:03:30]} d5 {[%emt 0:01:30]} 2. Nf3 {[%emt 0:00:30]} Nf6 {[%emt 0:00:30]} 3. Bf4 {[%emt 0:00:30]} c5 {[%emt 0:00:00]} 4. c3 {[%emt 0:07:30]} cxd4 {[%emt 0:00:00]} 5. Nxd4 {[%emt 0:01:30]} a6 {[%emt 0:09:30]} 6. e3 {[%emt 0:08:30]} e6 {[%emt 0:02:30]} 7. Bd3 {[%emt 0:08:30]} Bd6 {[%emt 0:03:30]} 8. Bg5 {[%emt 0:04:30]} Nbd7 {[%emt 0:02:30]} 9. Bc2 {[%emt 0:09:30]} Bb8 {[%emt 0:00:30]} 10. Nd2 {[%emt 0:06:30]} h6 {[%emt 0:01:30]} 11. Bh4 {[%emt 0:00:30]} e5 {[%emt 0:01:30]} 12. Nf5 {[%emt 0:01:30]} g6 {[%emt 0:00:30]} 13. Bxf6 {[%emt 0:04:30]} Nxf6 {[%emt 0:01:30]} 14. Ng3 {[%emt 0:00:00]} Bg4 {[%emt 0:03:30]} 15. Qb1 {[%emt 0:01:00]} Kf8 {[%emt 0:03:30]} 16. Bb3 {[%emt 0:05:30]} h5 {[%emt 0:03:30]} 17. Qd3 {[%emt 0:04:30]} Kg7 {[%emt 0:02:30]} 18. f3 {[%emt 0:03:30]} e4 {[%emt 0:03:30]} 19. Qc2 {[%emt 0:04:30]} exf3 {[%emt 0:01:30]} 20. gxf3 {[%emt 0:00:30]} Bxg3+ {[%emt 0:00:30]} 21. hxg3 {[%emt 0:00:30]} Bf5 {[%emt 0:01:30]} 22. Qd1 {[%emt 0:00:30]} Bd3 {[%emt 0:19:30]} 23. Kf2 {[%emt 0:01:30]} Qb6 {[%emt 0:04:30]} 24. Rh4 {[%emt 0:02:30]} Rae8 {[%emt 0:01:30]} 25. Rd4 {[%emt 0:00:30]} Bb5 {[%emt 0:00:30]} 26. Nf1 {[%emt 0:01:02]} Bxf1 {[%emt 0:00:30]} 27. Qxf1 {[%emt 0:01:01]} Re5 {[%emt 0:00:00]} 28. Qd3 {[%emt 0:00:51]} Rhe8 {[%emt 0:01:00]} 29. Re1 {[%emt 0:00:21]} Qe6 {[%emt 0:00:30]} 30. Rh4 {[%emt 0:08:52]} Rf5 {[%emt 0:02:30]} 31. Kg2 {[%emt 0:00:34]} g5 {[%emt 0:03:30]} 32. Bc2 {[%emt 0:03:35]} Rxf3 {[%emt 0:02:30]} 33. Rxh5 {[%emt 0:01:05]} Qg4 {[%emt 0:02:30]} 34. Rxg5+ {[%emt 0:00:57]} Qxg5 {[%emt 0:00:30]} 35. Kxf3 {[%emt 0:00:02]} Qh5+ {[%emt 0:03:22]} 36. Kg2 {[%emt 0:00:45]} Rh8 {[%emt 0:00:27]} 37. Qf5 {[%emt 0:00:29]} Qh2+ {[%emt 0:00:13]} 38. Kf1 {[%emt 0:04:43]} Rh5 {[%emt 0:01:34]} 39. Qd3 {[%emt 0:01:01]} Kg8 {[%emt 0:04:02]} 40. e4 {[%emt 0:00:53]} dxe4 {[%emt 0:01:18]} 41. Qd8+ {[%emt 0:00:51]} Kg7 {[%emt 0:00:13]} 42. Bxe4 {[%emt 0:00:30]} Nxe4 {[%emt 0:01:33]} 43. Qd4+ {[%emt 0:00:01]} Nf6 {[%emt 0:00:10]} 44. Re7 {[%emt 0:01:16]} Qh1+ {[%emt 0:01:25]} 45. Ke2 {[%emt 0:00:13]} Rh2+ {[%emt 0:00:40]} 46. Kd3 {[%emt 0:00:07]} Qf1+ {[%emt 0:00:10]} 0-1

[Event "IM Marmaris Karia IX 2019"]
[Site "Marmaris"]
[Date "2019.08.25"]
[Round "7.4"]
[White "Oney, Feridun"]
[Black "Datuashvili, Nona"]
[Result "1/2-1/2"]
[ECO "D35"]
[WhiteElo "2054"]
[BlackElo "2083"]
[Annotator "NA RC"]
[PlyCount "61"]
[EventDate "2019.08.24"]
[EventType "schev"]
[EventCountry "TUR"]
[SourceTitle "playchess.com"]
[Source "ChessBase"]
[SourceQuality "1"]
[TimeControl "5400+30"]

1. d4 {[%emt 0:00:30]} d5 {[%emt 0:01:30]} 2. c4 {[%emt 0:00:30]} e6 {[%emt 0:00:30]} 3. Nc3 {[%emt 0:00:00]} c6 {[%emt 0:01:30]} 4. cxd5 {[%emt 0:01:00]} exd5 {[%emt 0:00:30]} 5. Bf4 {[%emt 0:00:30]} Nf6 {[%emt 0:00:00]} 6. Nf3 {[%emt 0:01:30]} Bd6 {[%emt 0:00:00]} 7. Bxd6 {[%emt 0:00:30]} Qxd6 {[%emt 0:00:30]} 8. e3 {[%emt 0:00:00]} O-O {[%emt 0:01:30]} 9. Be2 {[%emt 0:00:00]} Bf5 {[%emt 0:00:30]} 10. O-O {[%emt 0:00:30]} Nbd7 {[%emt 0:01:30]} 11. Rc1 {[%emt 0:00:30]} Rfe8 {[%emt 0:00:30]} 12. Bd3 {[%emt 0:00:00]} Bxd3 {[%emt 0:01:30]} 13. Qxd3 {[%emt 0:00:00]} Ne4 {[%emt 0:00:00]} 14. Nd2 {[%emt 0:00:30]} Nxd2 {[%emt 0:00:00]} 15. Qxd2 {[%emt 0:00:30]} Nf6 {[%emt 0:00:30]} 16. Qc2 {[%emt 0:00:30]} h6 {[%emt 0:00:30]} 17. Qb3 {[%emt 0:00:30]} Re7 {[%emt 0:00:30]} 18. h3 {[%emt 0:00:30]} Ne4 {[%emt 0:00:30]} 19. Nxe4 {[%emt 0:00:30]} dxe4 {[%emt 0:00:30]} 20. Qc3 {[%emt 0:00:30]} Qd5 {[%emt 0:00:30]} 21. Qc4 {[%emt 0:00:30]} Qxc4 {[%emt 0:00:30]} 22. Rxc4 {[%emt 0:00:00]} Rd8 {[%emt 0:00:00]} 23. Rfc1 {[%emt 0:00:00]} Rd5 {[%emt 0:00:00]} 24. Rc5 {[%emt 0:00:00]} Rxc5 {[%emt 0:00:00]} 25. Rxc5 {[%emt 0:00:00]} g6 {[%emt 0:01:00]} 26. Kf1 {[%emt 0:00:00]} h5 {[%emt 0:00:00]} 27. h4 {[%emt 0:00:00]} f5 {[%emt 0:00:00]} 28. g3 {[%emt 0:00:00]} Kf7 {[%emt 0:00:30]} 29. Ke2 {[%emt 0:00:00]} Kf6 {[%emt 0:00:00]} 30. Kd2 {[%emt 0:00:00]} a6 {[%emt 0:00:00]} 31. Ke2 {[%emt 0:00:00]} 1/2-1/2

[Event "IM Marmaris Karia IX 2019"]
[Site "Marmaris"]
[Date "2019.08.25"]
[Round "8.1"]
[White "Papenin, Nikolai"]
[Black "Tanriverdi, Enes"]
[Result "0-1"]
[ECO "D01"]
[WhiteElo "2319"]
[BlackElo "2355"]
[Annotator "NA RC"]
[PlyCount "54"]
[EventDate "2019.08.24"]
[EventType "schev"]
[EventCountry "TUR"]
[SourceTitle "playchess.com"]
[Source "ChessBase"]
[SourceQuality "1"]
[TimeControl "5400+30"]

1. d4 {[%emt 0:00:30]} Nf6 {[%emt 0:00:30]} 2. Nc3 {[%emt 0:00:00]} d5 {[%emt 0:00:30]} 3. Bg5 {[%emt 0:00:00]} c6 {[%emt 0:00:30]} 4. Nf3 {[%emt 0:00:00]} Ne4 {[%emt 0:00:30]} 5. Nxe4 {[%emt 0:02:00]} dxe4 {[%emt 0:01:30]} 6. Ng1 {[%emt 0:00:30]} Qb6 {[%emt 0:04:30]} 7. Bc1 {[%emt 0:01:30]} e5 {[%emt 0:00:30]} 8. e3 {[%emt 0:01:30]} Be6 {[%emt 0:01:30]} 9. Ne2 {[%emt 0:01:30]} (9. f3 $11 {remains equal.}) 9... Nd7 {[%emt 0:00:30]} 10. Nc3 $17 {[%emt 0:00:30] [#]} f5 $1 {[%emt 0:01:30]} 11. Be2 {[%emt 0:02:30]} Rd8 {[%emt 0:00:30]} 12. g4 {[%emt 0:04:30]} Nf6 {[%emt 0:04:30]} 13. gxf5 {[%emt 0:05:30]} Bxf5 {[%emt 0:01:30]} 14. Bd2 {[%emt 0:01:30]} exd4 {[%emt 0:00:30]} 15. exd4 {[%emt 0:00:30]} Rxd4 {[%emt 0:00:00]} 16. Qc1 {[%emt 0:00:00]} Bc5 {[%emt 0:00:00]} 17. Be3 {[%emt 0:00:00]} O-O {[%emt 0:00:30]} 18. Rg1 {[%emt 0:01:30]} Rd7 {[%emt 0:03:30]} 19. Bxc5 {[%emt 0:04:30]} Qxc5 {[%emt 0:00:30]} 20. Qe3 {[%emt 0:00:30]} Qb4 {[%emt 0:00:30]} 21. Rb1 {[%emt 0:03:30]} Nd5 {[%emt 0:00:30]} 22. Qd2 {[%emt 0:00:30]} e3 {[%emt 0:00:30]} 23. fxe3 {[%emt 0:02:30]} Qh4+ {[%emt 0:02:30]} 24. Rg3 {[%emt 0:00:30]} Nb4 {[%emt 0:00:30]} 25. Bd3 {[%emt 0:00:30]} Bxd3 {[%emt 0:00:30]} 26. cxd3 {[%emt 0:00:30]} Nxd3+ {[%emt 0:00:00]} 27. Kd1 {[%emt 0:00:30]} Nf2+ {[%emt 0:00:00]} 0-1

[Event "IM Marmaris Karia IX 2019"]
[Site "Marmaris"]
[Date "2019.08.25"]
[Round "8.3"]
[White "Datuashvili, Nona"]
[Black "Kizilkus, Akin"]
[Result "0-1"]
[ECO "C01"]
[WhiteElo "2083"]
[BlackElo "2135"]
[Annotator "ChessBase"]
[PlyCount "22"]
[EventDate "2019.08.24"]
[EventType "schev"]
[EventCountry "TUR"]
[SourceTitle "playchess.com"]
[Source "ChessBase"]
[SourceQuality "1"]
[TimeControl "5400+30"]

1. e4 {[%emt 0:09:30]} e6 {[%emt 0:00:30]} 2. d4 {[%emt 0:00:30]} d5 {[%emt 0:00:00]} 3. exd5 {[%emt 0:00:00]} exd5 {[%emt 0:00:00]} 4. c4 {[%emt 0:00:00]} Nf6 {[%emt 0:00:00]} 5. Nc3 {[%emt 0:00:00]} Bb4 {[%emt 0:00:00]} 6. Nf3 {[%emt 0:00:00]} O-O {[%emt 0:00:30]} 7. Be2 {[%emt 0:00:00]} dxc4 {[%emt 0:00:30]} 8. Bxc4 {[%emt 0:00:00]} Nc6 {[%emt 0:00:00]} 9. h3 {[%emt 0:00:00]} Re8+ {[%emt 0:09:00]} 10. Be2 {[%emt 0:00:00]} Ne4 {[%emt 0:01:30]} 11. O-O {[%emt 0:00:30]} Bxc3 0-1